fUSD/lending_fUSD_20251122
["ID","MTS","AMOUNT","RATE_DAILY","PERIOD"]
[394645537,1763806320768,-686.05,0.00020547,2]
[394645538,1763806320778,-689.73,0.00020547,2]
[394645539,1763806320788,-515.09,0.00020547,2]
[394645540,1763806320797,-909.79,0.00020547,2]
[394645541,1763806320806,-534.13,0.00020547,2]
[394645542,1763806320817,-987.88,0.00020547,2]
[394645543,1763806320827,-500.0,0.00020547,2]
[394645544,1763806320836,-1118.33,0.00020547,2]
[394645545,1763806320845,-593.96,0.00020547,2]
[394645546,1763806320854,-532.39,0.00020547,2]
[394645547,1763806320864,-500.0,0.00020547,2]
[394645548,1763806320874,-500.0,0.00020547,2]
[394645549,1763806320883,-500.0,0.00020547,2]
[394645550,1763806320892,-500.0,0.00020547,2]
[394645551,1763806320901,-643.4,0.00020547,2]
[394645552,1763806320912,-745.16,0.00020547,2]
[394645553,1763806320921,-760.48,0.00020547,2]
[394645554,1763806320931,-660.26,0.00020547,2]
[394645555,1763806320940,-643.35,0.00020547,2]
[394645556,1763806320950,-536.96,0.00020547,2]
[394645557,1763806320959,-561.03,0.00020547,2]
[394645558,1763806320969,-667.06,0.00020547,2]
[394645559,1763806320979,-500.0,0.00020547,2]
[394645560,1763806320989,-840.36,0.00020547,2]
[394645561,1763806320998,-588.85,0.00020547,2]
[394645562,1763806321008,-527.44,0.00020547,2]
[394645563,1763806321018,-500.0,0.00020547,2]
[394645564,1763806321027,-1117.89,0.00020547,2]
[394645565,1763806321037,-500.0,0.00020547,2]
[394645566,1763806321046,-761.79,0.00020547,2]
[394645567,1763806321057,-620.55,0.00020547,2]
[394645568,1763806321066,-593.36,0.00020547,2]
[394645569,1763806321075,-676.83,0.00020547,2]
[394645570,1763806321084,-900.44,0.00020547,2]
[394645571,1763806321093,-1015.0,0.00020547,2]
[394645572,1763806321103,-588.06,0.00020547,2]
[394645573,1763806321112,-511.04,0.00020547,2]
[394645574,1763806321121,-500.0,0.00020547,2]
[394645575,1763806321131,-1144.77,0.00020547,2]
[394645576,1763806321140,-787.96,0.00020547,2]
[394645577,1763806321149,-500.0,0.00020547,2]
[394645578,1763806321159,-865.95,0.00020547,2]
[394645579,1763806321167,-592.3,0.00020547,2]
[394645580,1763806321177,-540.6,0.00020547,2]
[394645581,1763806321187,-790.49,0.00020547,2]
[394645582,1763806321204,-580.1,0.00020547,2]
[394645583,1763806321222,-500.0,0.00020547,2]
[394645584,1763806321232,-766.2,0.00020547,2]
[394645585,1763806321243,-557.29,0.00020547,2]
[394645586,1763806321253,-500.0,0.00020547,2]
[394645587,1763806321263,-500.0,0.00020547,2]
[394645588,1763806321273,-637.13,0.00020547,2]
[394645589,1763806321284,-1511.77,0.00020547,2]
[394645590,1763806321296,-699.88,0.00020547,2]
[394645591,1763806321304,-500.0,0.00020547,2]
[394645592,1763806321314,-705.23,0.00020547,2]
[394645593,1763806321324,-768.25,0.00020547,2]
[394645594,1763806321337,-561.04,0.00020547,2]
[394645595,1763806321349,-500.0,0.00020547,2]
[394645596,1763806321359,-681.07,0.00020547,2]
[394645597,1763806321369,-889.28,0.00020547,2]
[394645598,1763806321380,-500.0,0.00020547,2]
[394645599,1763806321391,-500.0,0.00020547,2]
[394645600,1763806321400,-910.7,0.00020547,2]
[394645601,1763806321410,-581.69,0.00020547,2]
[394645602,1763806321419,-681.0,0.00020547,2]
[394645603,1763806321428,-500.0,0.00020547,2]
[394645604,1763806321438,-500.0,0.00020547,2]
[394645605,1763806321448,-561.58,0.00020547,2]
[394645606,1763806321458,-520.44,0.00020547,2]
[394645607,1763806321469,-892.07,0.00020547,2]
[394645608,1763806321479,-648.76,0.00020547,2]
[394645609,1763806321488,-540.37,0.00020547,2]
[394645610,1763806321497,-1478.21,0.00020547,2]
[394645611,1763806321506,-500.0,0.00020547,2]
[394645612,1763806321515,-500.0,0.00020547,2]
[394645613,1763806321524,-680.96,0.00020547,2]
[394645614,1763806321534,-685.91,0.00020547,2]
[394645615,1763806321543,-778.77,0.00020547,2]
[394645616,1763806321552,-500.0,0.00020547,2]
[394645617,1763806321561,-714.38,0.00020547,2]
[394645618,1763806321570,-500.0,0.00020547,2]
[394645619,1763806321579,-758.68,0.00020547,2]
[394645620,1763806321589,-745.24,0.00020547,2]
[394645621,1763806321598,-758.78,0.00020547,2]
[394645622,1763806321607,-1003.75,0.00020547,2]
[394645623,1763806321617,-500.0,0.00020547,2]
[394645624,1763806321626,-500.0,0.00020547,2]
[394645625,1763806321635,-500.0,0.00020547,2]
[394645626,1763806321644,-500.0,0.00020547,2]
[394645627,1763806321654,-753.49,0.00020547,2]
[394645628,1763806321664,-697.04,0.00020547,2]
[394645629,1763806321674,-595.07,0.00020547,2]
[394645630,1763806321683,-892.51,0.00020547,2]
[394645631,1763806321693,-507.73,0.00020547,2]
[394645632,1763806321703,-500.0,0.00020547,2]
[394645633,1763806321712,-817.08,0.00020547,2]
[394645634,1763806321721,-500.0,0.00020547,2]
[394645635,1763806321731,-598.13,0.00020547,2]
[394645636,1763806321742,-500.0,0.00020547,2]
[394645637,1763806321752,-500.0,0.00020547,2]
[394645638,1763806321763,-683.96,0.00020547,2]
[394645639,1763806321773,-724.4,0.00020547,2]
[394645640,1763806321782,-700.99,0.00020547,2]
[394645641,1763806321791,-506.6,0.00020547,2]
[394645642,1763806321800,-565.13138417,0.00020547,2]
[394645643,1763806321809,-830.04,0.00020547,2]
[394645644,1763806321819,-509.8,0.00020547,2]
[394645645,1763806321828,-500.0,0.00020547,2]
[394645646,1763806321838,-645.82,0.00020547,2]
[394645647,1763806321847,-500.0,0.00020547,2]
[394645648,1763806321858,-651.49,0.00020547,2]
[394645649,1763806321867,-500.0,0.00020547,2]
[394645650,1763806321876,-400.90615289,0.00020547,2]
[394645651,1763806321892,-680.93,0.00020547,2]
[394645652,1763806321907,-950.5,0.00020547,2]
[394645653,1763806321916,-500.0,0.00020547,2]
[394645654,1763806321926,-768.8,0.00020547,2]
[394645655,1763806321936,-1163.93,0.00020547,2]
[394645656,1763806321945,-938.85,0.00020547,2]
[394645657,1763806321955,-500.0,0.00020547,2]
[394645658,1763806321966,-816.31,0.00020547,2]
[394645659,1763806321977,-500.0,0.00020547,2]
[394645660,1763806321991,-695.83,0.00020547,2]
[394645661,1763806322002,-500.0,0.00020547,2]
[394645662,1763806322013,-1025.64,0.00020547,2]
[394645663,1763806322021,-692.67,0.00020547,2]
[394645664,1763806322030,-970.47,0.00020547,2]
[394645665,1763806322039,-5173.16,0.00020547,2]
[394645666,1763806322051,-500.0,0.00020547,2]
[394645667,1763806322060,-500.0,0.00020547,2]
[394645668,1763806322069,-974.11,0.00020547,2]
[394645669,1763806322080,-500.0,0.00020547,2]
[394645670,1763806322090,-500.0,0.00020547,2]
[394645671,1763806322102,-500.0,0.00020547,2]
[394645672,1763806322111,-942.8,0.00020547,2]
[394645673,1763806322120,-1130.33,0.00020547,2]
[394645674,1763806322129,-2544.87,0.00020547,2]
[394645675,1763806322137,-804.3,0.00020547,2]
[394645676,1763806322146,-674.23,0.00020547,2]
[394645677,1763806322155,-1191.45,0.00020547,2]
[394645678,1763806322166,-585.41,0.00020547,2]
[394645679,1763806322175,-839.14,0.00020547,2]
[394645680,1763806322184,-564.02,0.00020547,2]
[394645681,1763806322194,-505.12,0.00020547,2]
[394645682,1763806322204,-559.83,0.00020547,2]
[394645683,1763806322213,-500.0,0.00020547,2]
[394645684,1763806322222,-1055.95,0.00020547,2]
[394645685,1763806322232,-1463.02,0.00020547,2]
[394645686,1763806322241,-521.42,0.00020547,2]
[394645687,1763806322250,-733.24,0.00020547,2]
[394645688,1763806322259,-782.33,0.00020547,2]
[394645689,1763806322268,-734.36,0.00020547,2]
[394645690,1763806322278,-839.69,0.00020547,2]
[394645691,1763806322287,-500.0,0.00020547,2]
[394645692,1763806322296,-500.0,0.00020547,2]
[394645693,1763806322305,-1249.82,0.00020547,2]
[394645694,1763806322315,-1049.8,0.00020547,2]
[394645695,1763806322325,-523.31,0.00020547,2]
[394645696,1763806322334,-1579.91,0.00020547,2]
[394645697,1763806322343,-532.69,0.00020547,2]
[394645698,1763806322352,-570.72,0.00020547,2]
[394645699,1763806322362,-515.86,0.00020547,2]
[394645700,1763806322371,-1073.42,0.00020547,2]
[394645701,1763806322382,-1688.87,0.00020547,2]
[394645702,1763806322391,-602.73,0.00020547,2]
[394645703,1763806322400,-594.48413217,0.00020547,2]
[394645704,1763806322411,-786.03,0.00020547,2]
[394645705,1763806322420,-500.0,0.00020547,2]
[394645706,1763806322430,-1309.89,0.00020547,2]
[394645707,1763806322439,-500.0,0.00020547,2]
[394645708,1763806322449,-500.0,0.00020547,2]
[394645709,1763806322458,-500.0,0.00020547,2]
[394645710,1763806322468,-919.35,0.00020547,2]
[394645711,1763806322478,-606.55,0.00020547,2]
[394645712,1763806322487,-523.55,0.00020547,2]
[394645713,1763806322497,-500.0,0.00020547,2]
[394645714,1763806322506,-816.25,0.00020547,2]
[394645715,1763806322515,-500.0,0.00020547,2]
[394645716,1763806322525,-521.48379273,0.00020547,2]
[394645717,1763806322534,-1202.89,0.00020547,2]
[394645718,1763806322542,-696.52,0.00020547,2]
[394645719,1763806322552,-532.1,0.00020547,2]
[394645720,1763806322561,-1008.12,0.00020547,2]
[394645721,1763806322570,-771.55,0.00020547,2]
[394645722,1763806322580,-682.29,0.00020547,2]
[394645723,1763806322589,-597.76,0.00020547,2]
[394645724,1763806322599,-2185.15,0.00020547,2]
[394645725,1763806322607,-156.59670217,0.00020547,2]
[394645726,1763806322617,-935.0,0.00020547,2]
[394645727,1763806322627,-561.06,0.00020547,2]
[394645728,1763806322636,-558.65,0.00020547,2]
[394645729,1763806322646,-1048.65,0.00020547,2]
[394645730,1763806322655,-500.0,0.00020547,2]
[394645731,1763806322666,-517.79,0.00020547,2]
[394645732,1763806322676,-500.0,0.00020547,2]
[394645733,1763806322685,-1090.24,0.00020547,2]
[394645734,1763806322694,-776.75,0.00020547,2]
[394645735,1763806322703,-595.92,0.00020547,2]
[394645736,1763806322713,-500.0,0.00020547,2]
[394645737,1763806322723,-2164.02,0.00020547,2]
[394645738,1763806322732,-500.0,0.00020547,2]
[394645739,1763806322744,-500.0,0.00020547,2]
[394645740,1763806322754,-655.49,0.00020547,2]
[394645741,1763806322763,-1677.03,0.00020547,2]
[394645742,1763806322772,-7021.18,0.00020547,2]
[394645743,1763806322782,-696.44,0.00020547,2]
[394645744,1763806322792,-786.49,0.00020547,2]
[394645745,1763806322803,-1780.25,0.00020547,2]
[394645746,1763806322812,-557.18,0.00020547,2]
[394645747,1763806322822,-987.68,0.00020547,2]
[394645748,1763806322831,-1070.85,0.00020547,2]
[394645749,1763806322840,-672.12,0.00020547,2]
[394645750,1763806322849,-702.43,0.00020547,2]
[394645751,1763806322858,-628.98,0.00020547,2]
[394645752,1763806322867,-586.32,0.00020547,2]
[394645753,1763806322877,-500.0,0.00020547,2]
[394645754,1763806322887,-1078.17,0.00020547,2]
[394645755,1763806322898,-557.34,0.00020547,2]
[394645756,1763806322909,-500.0,0.00020547,2]
[394645757,1763806322919,-500.0,0.00020547,2]
[394645758,1763806322928,-1073.87,0.00020547,2]
[394645759,1763806322938,-631.15,0.00020547,2]
[394645760,1763806322948,-503.62,0.00020547,2]
[394645761,1763806322959,-500.0,0.00020547,2]
[394645762,1763806322970,-881.11,0.00020547,2]
[394645763,1763806322981,-458.96668953,0.00020547,2]
[394645764,1763806322992,-5846.52,0.00020547,2]
[394645765,1763806323003,-729.49,0.00020547,2]
[394645766,1763806323012,-3727.77,0.00020547,2]
[394645767,1763806323022,-500.0,0.00020547,2]
[394645768,1763806323031,-4450.71,0.00020547,2]
[394645769,1763806323040,-867.82,0.00020547,2]
[394645770,1763806323049,-500.0,0.00020547,2]
[394645771,1763806323060,-674.27,0.00020547,2]
[394645772,1763806323069,-673.15,0.00020547,2]
[394645773,1763806323078,-1064.84,0.00020547,2]
[394645774,1763806323088,-978.13,0.00020547,2]
[394645775,1763806323099,-1344.66,0.00020547,2]
[394645776,1763806323108,-651.06,0.00020547,2]
[394645777,1763806323118,-500.0,0.00020547,2]
[394645778,1763806323127,-835.55,0.00020547,2]
[394645779,1763806323137,-776.5,0.00020547,2]
[394645780,1763806323147,-567.01,0.00020547,2]
[394645781,1763806323156,-662.91,0.00020547,2]
[394645782,1763806323166,-500.0,0.00020547,2]
[394645783,1763806323175,-765.48,0.00020547,2]
[394645784,1763806323184,-577.58,0.00020547,2]
[394645785,1763806323194,-819.38,0.00020547,2]
[394645786,1763806323203,-2977.14,0.00020547,2]
[394645787,1763806323212,-994.62,0.00020547,2]
[394645788,1763806323222,-500.0,0.00020547,2]
[394645789,1763806323231,-600.0,0.00020548,2]
[394645790,1763806323241,-190.37,0.00020548,2]
[394645791,1763806323250,-2190.14597,0.0002058,2]
[394645792,1763806323259,-183.15,0.0002063,2]
[394645793,1763806323267,-2000.0,0.000207,2]
[394645794,1763806323276,-1000.0,0.00020795,2]
[394645795,1763806323285,-867.5,0.00020821,2]
[394645796,1763806323294,-500.0,0.00020821,2]
[394645797,1763806323303,-500.0,0.00020821,2]
[394645798,1763806323311,-643.22,0.00020821,2]
[394645799,1763806323320,-843.09,0.00020821,2]
[394645800,1763806323330,-664.19,0.00020821,2]
[394645801,1763806323339,-579.49,0.00020821,2]
[394645802,1763806323348,-944.02,0.00020821,2]
[394645803,1763806323358,-500.0,0.00020821,2]
[394645804,1763806323368,-781.7,0.00020821,2]
[394645805,1763806323377,-500.0,0.00020821,2]
[394645806,1763806323386,-754.3,0.00020821,2]
[394645807,1763806323397,-500.0,0.00020821,2]
[394645808,1763806323406,-826.89,0.00020821,2]
[394645809,1763806323416,-760.07,0.00020821,2]
[394645810,1763806323426,-660.25,0.00020821,2]
[394645811,1763806323435,-500.0,0.00020821,2]
[394645812,1763806323443,-620.59,0.00020821,2]
[394645813,1763806323453,-718.76,0.00020821,2]
[394645814,1763806323463,-589.29,0.00020821,2]
[394645815,1763806323472,-523.48,0.00020821,2]
[394645816,1763806323482,-500.0,0.00020821,2]
[394645817,1763806323492,-1151.27,0.00020821,2]
[394645818,1763806323502,-539.63,0.00020821,2]
[394645819,1763806323513,-943.25,0.00020821,2]
[394645820,1763806323522,-532.89,0.00020821,2]
[394645821,1763806323532,-717.92,0.00020821,2]
[394645822,1763806323543,-791.9,0.00020821,2]
[394645823,1763806323552,-671.16,0.00020821,2]
[394645824,1763806323562,-513.69,0.00020821,2]
[394645825,1763806323571,-718.46,0.00020821,2]
[394645826,1763806323580,-903.01,0.00020821,2]
[394645827,1763806323589,-619.27,0.00020821,2]
[394645828,1763806323598,-633.07,0.00020821,2]
[394645829,1763806323607,-512.4,0.00020821,2]
[394645830,1763806323616,-734.0,0.00020821,2]
[394645831,1763806323625,-686.05,0.00020821,2]
[394645832,1763806323634,-689.73,0.00020821,2]
[394645833,1763806323644,-515.09,0.00020821,2]
[394645834,1763806323653,-909.79,0.00020821,2]
[394645835,1763806323664,-534.13,0.00020821,2]
[394645836,1763806323674,-987.88,0.00020821,2]
[394645837,1763806323683,-500.0,0.00020821,2]
[394645838,1763806323693,-1118.33,0.00020821,2]
[394645839,1763806323883,-593.96,0.00020821,2]
[394645840,1763806323892,-532.39,0.00020821,2]
[394645841,1763806323902,-500.0,0.00020821,2]
[394645842,1763806323912,-500.0,0.00020821,2]
[394645843,1763806323923,-500.0,0.00020821,2]
[394645844,1763806323932,-500.0,0.00020821,2]
[394645845,1763806323941,-643.4,0.00020821,2]
[394645846,1763806323950,-745.16,0.00020821,2]
[394645847,1763806323959,-760.48,0.00020821,2]
[394645848,1763806323970,-660.26,0.00020821,2]
[394645849,1763806323980,-643.35,0.00020821,2]
[394645850,1763806323989,-536.96,0.00020821,2]
[394645851,1763806324000,-561.03,0.00020821,2]
[394645852,1763806324010,-667.06,0.00020821,2]
[394645853,1763806324022,-500.0,0.00020821,2]
[394645854,1763806324031,-840.36,0.00020821,2]
[394645855,1763806324040,-588.85,0.00020821,2]
[394645856,1763806324049,-527.44,0.00020821,2]
[394645857,1763806324059,-500.0,0.00020821,2]
[394645858,1763806324068,-1117.89,0.00020821,2]
[394645859,1763806324077,-500.0,0.00020821,2]
[394645860,1763806324086,-761.79,0.00020821,2]
[394645861,1763806324095,-593.36,0.00020821,2]
[394645862,1763806324104,-620.55,0.00020821,2]
[394645863,1763806324114,-676.83,0.00020821,2]
[394645864,1763806324123,-900.44,0.00020821,2]
[394645865,1763806324132,-1015.0,0.00020821,2]
[394645866,1763806324141,-588.06,0.00020821,2]
[394645867,1763806324150,-511.04,0.00020821,2]
[394645868,1763806324159,-500.0,0.00020821,2]
[394645869,1763806324168,-1144.77,0.00020821,2]
[394645870,1763806324178,-787.96,0.00020821,2]
[394645871,1763806324188,-215.5184785,0.00020821,2]
[394645872,1763806324197,-865.95,0.00020821,2]
[394645873,1763806324206,-592.3,0.00020821,2]
[394645874,1763806324216,-540.6,0.00020821,2]
[394645875,1763806324226,-790.49,0.00020821,2]
[394645876,1763806324236,-580.1,0.00020821,2]
[394645877,1763806324247,-500.0,0.00020821,2]
[394645878,1763806324255,-766.2,0.00020821,2]
[394645879,1763806324264,-557.29,0.00020821,2]
[394645880,1763806324274,-500.0,0.00020821,2]
[394645881,1763806324283,-250.62268631,0.00020821,2]
[394645882,1763806324291,-637.13,0.00020821,2]
[394645883,1763806324301,-1511.77,0.00020821,2]
[394645884,1763806324310,-699.88,0.00020821,2]
[394645885,1763806324318,-500.0,0.00020821,2]
[394645886,1763806324327,-705.23,0.00020821,2]
[394645887,1763806324336,-768.25,0.00020821,2]
[394645888,1763806324346,-561.04,0.00020821,2]
[394645889,1763806324356,-500.0,0.00020821,2]
[394645890,1763806324365,-681.07,0.00020821,2]
[394645891,1763806324374,-889.28,0.00020821,2]
[394645892,1763806324383,-500.0,0.00020821,2]
[394645893,1763806324392,-500.0,0.00020821,2]
[394645894,1763806324401,-910.7,0.00020821,2]
[394645895,1763806324411,-581.69,0.00020821,2]
[394645896,1763806324420,-681.0,0.00020821,2]
[394645897,1763806324429,-500.0,0.00020821,2]
[394645898,1763806324438,-500.0,0.00020821,2]
[394645899,1763806324448,-561.58,0.00020821,2]
[394645900,1763806324457,-520.44,0.00020821,2]
[394645901,1763806324466,-892.07,0.00020821,2]
[394645902,1763806324475,-648.76,0.00020821,2]
[394645903,1763806324484,-540.37,0.00020821,2]
[394645904,1763806324493,-1478.21,0.00020821,2]
[394645905,1763806324502,-500.0,0.00020821,2]
[394645906,1763806324511,-500.0,0.00020821,2]
[394645907,1763806324520,-680.96,0.00020821,2]
[394645908,1763806324530,-685.91,0.00020821,2]
[394645909,1763806324540,-778.77,0.00020821,2]
[394645910,1763806324549,-213.15,0.00020821,2]
[394645911,1763806324558,-714.38,0.00020821,2]
[394645912,1763806324567,-278.95925754,0.00020821,2]
[394645913,1763806324575,-758.68,0.00020821,2]
[394645914,1763806324584,-745.24,0.00020821,2]
[394645915,1763806324594,-758.78,0.00020821,2]
[394645916,1763806324602,-1003.75,0.00020821,2]
[394645917,1763806324611,-500.0,0.00020821,2]
[394645918,1763806324620,-500.0,0.00020821,2]
[394645919,1763806324629,-500.0,0.00020821,2]
[394645920,1763806324639,-500.0,0.00020821,2]
[394645921,1763806324648,-753.49,0.00020821,2]
[394645922,1763806324657,-697.04,0.00020821,2]
[394645923,1763806324667,-595.07,0.00020821,2]
[394645924,1763806324677,-892.51,0.00020821,2]
[394645925,1763806324686,-507.73,0.00020821,2]
[394645926,1763806324695,-500.0,0.00020821,2]
[394645927,1763806324704,-817.08,0.00020821,2]
[394645928,1763806324714,-500.0,0.00020821,2]
[394645929,1763806324723,-598.13,0.00020821,2]
[394645930,1763806324732,-500.0,0.00020821,2]
[394645931,1763806324748,-500.0,0.00020821,2]
[394645932,1763806324767,-683.96,0.00020821,2]
[394645933,1763806324786,-724.4,0.00020821,2]
[394645934,1763806324808,-700.99,0.00020821,2]
[394645935,1763806324819,-506.6,0.00020821,2]
[394645936,1763806324830,-830.04,0.00020821,2]
[394645937,1763806324839,-509.8,0.00020821,2]
[394645938,1763806324848,-500.0,0.00020821,2]
[394645939,1763806324859,-645.82,0.00020821,2]
[394645940,1763806324869,-500.0,0.00020821,2]
[394645941,1763806324880,-651.49,0.00020821,2]
[394645942,1763806324890,-500.0,0.00020821,2]
[394645943,1763806324901,-680.93,0.00020821,2]
[394645944,1763806324911,-950.5,0.00020821,2]
[394645945,1763806324921,-500.0,0.00020821,2]
[394645946,1763806324931,-768.8,0.00020821,2]
[394645947,1763806324940,-1163.93,0.00020821,2]
[394645948,1763806324949,-938.85,0.00020821,2]
[394645949,1763806324958,-500.0,0.00020821,2]
[394645950,1763806324968,-816.31,0.00020821,2]
[394645951,1763806324977,-500.0,0.00020821,2]
[394645952,1763806324986,-695.83,0.00020821,2]
[394645953,1763806324995,-500.0,0.00020821,2]
[394645954,1763806325005,-1025.64,0.00020821,2]
[394645955,1763806325014,-692.67,0.00020821,2]
[394645956,1763806325023,-970.47,0.00020821,2]
[394645957,1763806325033,-5173.16,0.00020821,2]
[394645958,1763806325042,-500.0,0.00020821,2]
[394645959,1763806325051,-500.0,0.00020821,2]
[394645960,1763806325060,-974.11,0.00020821,2]
[394645961,1763806325069,-500.0,0.00020821,2]
[394645962,1763806325080,-500.0,0.00020821,2]
[394645963,1763806325089,-500.0,0.00020821,2]
[394645964,1763806325098,-942.8,0.00020821,2]
[394645965,1763806325107,-1130.33,0.00020821,2]
[394645966,1763806325116,-2544.87,0.00020821,2]
[394645967,1763806325125,-804.3,0.00020821,2]
[394645968,1763806325134,-674.23,0.00020821,2]
[394645969,1763806325143,-1191.45,0.00020821,2]
[394645970,1763806325152,-585.41,0.00020821,2]
[394645971,1763806325163,-839.14,0.00020821,2]
[394645972,1763806325172,-564.02,0.00020821,2]
[394645973,1763806325182,-505.12,0.00020821,2]
[394645974,1763806325191,-559.83,0.00020821,2]
[394645975,1763806325200,-500.0,0.00020821,2]
[394645976,1763806325210,-1055.95,0.00020821,2]
[394645977,1763806325219,-1463.02,0.00020821,2]
[394645978,1763806325229,-521.42,0.00020821,2]
[394645979,1763806325238,-733.24,0.00020821,2]
[394645980,1763806325247,-782.33,0.00020821,2]
[394645981,1763806325256,-734.36,0.00020821,2]
[394645982,1763806325266,-839.69,0.00020821,2]
[394645983,1763806325276,-500.0,0.00020821,2]
[394645984,1763806325285,-500.0,0.00020821,2]
[394645985,1763806325294,-1249.82,0.00020821,2]
[394645986,1763806325303,-1049.8,0.00020821,2]
[394645987,1763806325311,-523.31,0.00020821,2]
[394645988,1763806325321,-1579.91,0.00020821,2]
[394645989,1763806325330,-532.69,0.00020821,2]
[394645990,1763806325339,-570.72,0.00020821,2]
[394645991,1763806325348,-515.86,0.00020821,2]
[394645992,1763806325357,-1073.42,0.00020821,2]
[394645993,1763806325367,-1688.87,0.00020821,2]
[394645994,1763806325376,-602.73,0.00020821,2]
[394645995,1763806325385,-786.03,0.00020821,2]
[394645996,1763806325394,-500.0,0.00020821,2]
[394645997,1763806325403,-1309.89,0.00020821,2]
[394645998,1763806325413,-500.0,0.00020821,2]
[394645999,1763806325423,-500.0,0.00020821,2]
[394646000,1763806325431,-500.0,0.00020821,2]
[394646001,1763806325440,-919.35,0.00020821,2]
[394646002,1763806325450,-606.55,0.00020821,2]
[394646003,1763806325459,-523.55,0.00020821,2]
[394646004,1763806325468,-816.25,0.00020821,2]
[394646005,1763806325478,-500.0,0.00020821,2]
[394646006,1763806325487,-636.42815118,0.00020821,2]
[394646007,1763806325496,-1202.89,0.00020821,2]
[394646008,1763806325505,-696.52,0.00020821,2]
[394646009,1763806325514,-532.1,0.00020821,2]
[394646010,1763806325523,-1008.12,0.00020821,2]
[394646011,1763806325532,-771.55,0.00020821,2]
[394646012,1763806325542,-682.29,0.00020821,2]
[394646013,1763806325551,-597.76,0.00020821,2]
[394646014,1763806325560,-2185.15,0.00020821,2]
[394646015,1763806325569,-935.0,0.00020821,2]
[394646016,1763806325578,-561.06,0.00020821,2]
[394646017,1763806325588,-558.65,0.00020821,2]
[394646018,1763806325597,-1048.65,0.00020821,2]
[394646019,1763806325607,-232.40999136,0.00020821,2]
[394646020,1763806325616,-517.79,0.00020821,2]
[394646021,1763806325625,-500.0,0.00020821,2]
[394646022,1763806325634,-1090.24,0.00020821,2]
[394646023,1763806325644,-776.75,0.00020821,2]
[394646024,1763806325653,-595.92,0.00020821,2]
[394646025,1763806325664,-500.0,0.00020821,2]
[394646026,1763806325673,-2164.02,0.00020821,2]
[394646027,1763806325684,-500.0,0.00020821,2]
[394646028,1763806325693,-500.0,0.00020821,2]
[394646029,1763806325703,-655.49,0.00020821,2]
[394646030,1763806325712,-1677.03,0.00020821,2]
[394646031,1763806325721,-7021.18,0.00020821,2]
[394646032,1763806325731,-786.49,0.00020821,2]
[394646033,1763806325741,-696.44,0.00020821,2]
[394646034,1763806325751,-1780.25,0.00020821,2]
[394646035,1763806325766,-557.18,0.00020821,2]
[394646036,1763806325776,-987.68,0.00020821,2]